[Event "Titled Tuesday Blitz May 16 Late 2023"]
[White "mohsengabr2002"]
[Black "Karttunen, Mika"]
[BlackFideId "502081"]
[WhiteElo "2369"]
[BlackElo "2396"]
[Result "0-1"]
[Round "04"]
[TimeControl "180+2"]
[Date "2023.05.16"]
[WhiteClock "0:01:05"]
[BlackClock "0:00:14"]

1. e4 {[%clk 0:01:51]}  c5 {[%clk 0:02:56]} 2. d3 {[%clk 0:01:51]}  Nf6 {[%clk 0:02:52]} 3. Nd2 {[%clk 0:01:52]}  d5 {[%clk 0:02:51]} 4. g3 {[%clk 0:01:53]}  Nc6 {[%clk 0:02:47]} 5. Bg2 {[%clk 0:01:53]}  e5 {[%clk 0:02:38]} 6. Ngf3 {[%clk 0:01:53]}  d4 {[%clk 0:02:34]} 7. O-O {[%clk 0:01:53]}  Be7 {[%clk 0:02:34]} 8. a4 {[%clk 0:01:53]}  O-O {[%clk 0:02:33]} 9. Nc4 {[%clk 0:01:53]}  Nd7 {[%clk 0:02:30]} 10. Ne1 {[%clk 0:01:52]}  Nb6 {[%clk 0:02:28]} 11. b3 {[%clk 0:01:52]}  Nxc4 {[%clk 0:02:27]} 12. bxc4 {[%clk 0:01:52]}  Kh8 {[%clk 0:02:06]} 13. f4 {[%clk 0:01:52]}  f5 {[%clk 0:02:00]} 14. fxe5 {[%clk 0:01:50]}  Nxe5 {[%clk 0:01:59]} 15. exf5 {[%clk 0:01:46]}  Rxf5 {[%clk 0:01:54]} 16. Rxf5 {[%clk 0:01:45]}  Bxf5 {[%clk 0:01:54]} 17. Bxb7 {[%clk 0:01:44]}  Rb8 {[%clk 0:01:53]} 18. Bg2 {[%clk 0:01:43]}  Bg5 {[%clk 0:01:49]} 19. Nf3 {[%clk 0:01:36]}  Bxc1 {[%clk 0:01:45]} 20. Nxe5 {[%clk 0:01:33]}  Be3+ {[%clk 0:01:44]} 21. Kh1 {[%clk 0:01:33]}  Qf6 {[%clk 0:01:09]} 22. Nc6 {[%clk 0:01:22]}  Rf8 {[%clk 0:00:58]} 23. Qf3 {[%clk 0:01:20]}  a6 {[%clk 0:00:53]} 24. Rf1 {[%clk 0:01:19]}  Bd7 {[%clk 0:00:48]} 25. Qd5 {[%clk 0:01:15]}  Qxf1+ {[%clk 0:00:36]} 26. Bxf1 {[%clk 0:01:15]}  Rxf1+ {[%clk 0:00:36]} 27. Kg2 {[%clk 0:01:16]}  Rf2+ {[%clk 0:00:31]} 28. Kg1 {[%clk 0:01:16]}  Rf5+ {[%clk 0:00:23]} 29. Kg2 {[%clk 0:01:15]}  Rxd5 {[%clk 0:00:23]} 30. cxd5 {[%clk 0:01:15]}  Kg8 {[%clk 0:00:17]} 31. Kf3 {[%clk 0:01:15]}  Kf7 {[%clk 0:00:17]} 32. Ke4 {[%clk 0:01:15]}  Bxc6 {[%clk 0:00:14]} 33. dxc6 {[%clk 0:01:15]}  Ke6 {[%clk 0:00:15]} 34. c4 {[%clk 0:01:14]}  Kd6 {[%clk 0:00:14]} 35. c7 {[%clk 0:01:14]}  Kxc7 {[%clk 0:00:13]} 36. Kd5 {[%clk 0:01:15]}  Bg1 {[%clk 0:00:13]} 37. h3 {[%clk 0:01:14]}  Bh2 {[%clk 0:00:13]} 38. g4 {[%clk 0:01:15]}  Bd6 {[%clk 0:00:14]} 39. a5 {[%clk 0:01:14]}  Kd7 {[%clk 0:00:14]} 40. g5 {[%clk 0:01:13]}  Be7 {[%clk 0:00:14]} 41. h4 {[%clk 0:01:13]}  Bd6 {[%clk 0:00:13]} 42. h5 {[%clk 0:01:13]}  g6 {[%clk 0:00:13]} 43. hxg6 {[%clk 0:01:11]}  hxg6 {[%clk 0:00:14]} 44. Ke4 {[%clk 0:01:05]}  Ke6 {[%clk 0:00:14]} 0-1


[Site "https://www.chess.com"]

[Event "Titled Tuesday Blitz May 16 Late 2023"]
[White "Romkachess"]
[Black "Mikayel99"]
[WhiteElo "2553"]
[BlackElo "2322"]
[Result "1-0"]
[Round "04"]
[TimeControl "180+2"]
[Date "2023.05.16"]
[WhiteClock "0:00:17"]
[BlackClock "0:00:42"]

1. e4 {[%clk 0:03:00]}  c5 {[%clk 0:03:00]} 2. Nf3 {[%clk 0:03:00]}  d6 {[%clk 0:03:00]} 3. d4 {[%clk 0:03:00]}  cxd4 {[%clk 0:03:01]} 4. Nxd4 {[%clk 0:03:00]}  Nf6 {[%clk 0:03:02]} 5. Nc3 {[%clk 0:03:00]}  a6 {[%clk 0:03:02]} 6. h3 {[%clk 0:03:00]}  e5 {[%clk 0:03:02]} 7. Nde2 {[%clk 0:02:59]}  h5 {[%clk 0:03:02]} 8. Bg5 {[%clk 0:02:56]}  Be6 {[%clk 0:03:01]} 9. Bxf6 {[%clk 0:02:56]}  gxf6 {[%clk 0:02:56]} 10. g3 {[%clk 0:02:33]}  Nc6 {[%clk 0:02:25]} 11. Bg2 {[%clk 0:02:23]}  Qb6 {[%clk 0:02:12]} 12. O-O {[%clk 0:02:17]}  O-O-O {[%clk 0:02:04]} 13. Nd5 {[%clk 0:02:16]}  Bxd5 {[%clk 0:02:03]} 14. exd5 {[%clk 0:02:16]}  Ne7 {[%clk 0:01:58]} 15. c4 {[%clk 0:02:13]}  h4 {[%clk 0:01:57]} 16. g4 {[%clk 0:01:57]}  f5 {[%clk 0:01:55]} 17. b4 {[%clk 0:01:51]}  fxg4 {[%clk 0:01:54]} 18. c5 {[%clk 0:01:51]}  dxc5 {[%clk 0:01:45]} 19. bxc5 {[%clk 0:01:50]}  Qg6 {[%clk 0:01:46]} 20. Kh1 {[%clk 0:01:37]}  gxh3 {[%clk 0:01:25]} 21. Bxh3+ {[%clk 0:01:35]}  Kb8 {[%clk 0:01:25]} 22. d6 {[%clk 0:01:35]}  Nf5 {[%clk 0:01:18]} 23. Rb1 {[%clk 0:00:49]}  Ng3+ {[%clk 0:01:07]} 24. fxg3 {[%clk 0:00:47]}  hxg3 {[%clk 0:01:07]} 25. Rxb7+ {[%clk 0:00:27]}  Kxb7 {[%clk 0:01:04]} 26. Qd5+ {[%clk 0:00:27]}  Ka7 {[%clk 0:01:02]} 27. Rxf7+ {[%clk 0:00:27]}  Qxf7 {[%clk 0:00:59]} 28. Qxf7+ {[%clk 0:00:26]}  Kb8 {[%clk 0:00:59]} 29. Kg2 {[%clk 0:00:23]}  Bxd6 {[%clk 0:00:53]} 30. cxd6 {[%clk 0:00:22]}  Rxd6 {[%clk 0:00:54]} 31. Qb3+ {[%clk 0:00:21]}  Ka7 {[%clk 0:00:51]} 32. Qe3+ {[%clk 0:00:21]}  Ka8 {[%clk 0:00:50]} 33. Qxe5 {[%clk 0:00:20]}  Rhd8 {[%clk 0:00:49]} 34. Bg4 {[%clk 0:00:20]}  Ka7 {[%clk 0:00:46]} 35. Qe3+ {[%clk 0:00:15]}  Kb8 {[%clk 0:00:45]} 36. Bf3 {[%clk 0:00:16]}  Rd2 {[%clk 0:00:42]} 37. Qb6+ {[%clk 0:00:16]}  Kc8 {[%clk 0:00:42]} 38. Qb7# {[%clk 0:00:17]} 1-0


[Site "https://www.chess.com"]

[Event "Titled Tuesday Blitz May 16 Late 2023"]
[White "Lazavik, Denis"]
[Black "Gasparyan, David"]
[WhiteFideId "13515110"]
[BlackFideId "13311980"]
[WhiteElo "2560"]
[BlackElo "2407"]
[Result "1-0"]
[Round "04"]
[TimeControl "180+2"]
[Date "2023.05.16"]
[WhiteClock "0:01:55"]
[BlackClock "0:00:03"]

1. d4 {[%clk 0:03:00]}  Nf6 {[%clk 0:02:58]} 2. c4 {[%clk 0:03:01]}  e6 {[%clk 0:02:58]} 3. Nf3 {[%clk 0:03:01]}  d5 {[%clk 0:02:57]} 4. g3 {[%clk 0:03:02]}  Be7 {[%clk 0:02:56]} 5. Bg2 {[%clk 0:03:02]}  O-O {[%clk 0:02:56]} 6. O-O {[%clk 0:03:00]}  Nbd7 {[%clk 0:02:56]} 7. Nc3 {[%clk 0:02:57]}  c6 {[%clk 0:02:51]} 8. Nd2 {[%clk 0:02:52]}  dxc4 {[%clk 0:02:43]} 9. Nxc4 {[%clk 0:02:52]}  Nb6 {[%clk 0:02:42]} 10. Ne5 {[%clk 0:02:52]}  Nfd5 {[%clk 0:02:39]} 11. Ne4 {[%clk 0:02:48]}  Nd7 {[%clk 0:02:25]} 12. Nd3 {[%clk 0:02:47]}  N7f6 {[%clk 0:02:23]} 13. Nc3 {[%clk 0:02:40]}  a5 {[%clk 0:02:18]} 14. e4 {[%clk 0:02:40]}  Nxc3 {[%clk 0:02:17]} 15. bxc3 {[%clk 0:02:41]}  a4 {[%clk 0:02:16]} 16. e5 {[%clk 0:02:40]}  Nd5 {[%clk 0:02:16]} 17. Bd2 {[%clk 0:02:40]}  Nb6 {[%clk 0:02:13]} 18. Qg4 {[%clk 0:02:40]}  Kh8 {[%clk 0:02:12]} 19. h4 {[%clk 0:02:38]}  Nc4 {[%clk 0:02:12]} 20. Bf4 {[%clk 0:02:35]}  Ra5 {[%clk 0:01:58]} 21. Rad1 {[%clk 0:02:34]}  f5 {[%clk 0:01:57]} 22. exf6 {[%clk 0:02:31]}  Bxf6 {[%clk 0:01:48]} 23. Qe2 {[%clk 0:02:29]}  Qe8 {[%clk 0:01:23]} 24. Rfe1 {[%clk 0:02:22]}  b6 {[%clk 0:01:18]} 25. Nb4 {[%clk 0:02:21]}  b5 {[%clk 0:01:01]} 26. Nxc6 {[%clk 0:02:18]}  Ra6 {[%clk 0:00:57]} 27. Nb4 {[%clk 0:02:18]}  Ra7 {[%clk 0:00:55]} 28. Be5 {[%clk 0:02:15]}  Bxe5 {[%clk 0:00:53]} 29. dxe5 {[%clk 0:02:15]}  Raf7 {[%clk 0:00:49]} 30. f4 {[%clk 0:02:15]}  Qe7 {[%clk 0:00:35]} 31. Rd4 {[%clk 0:02:12]}  Bb7 {[%clk 0:00:32]} 32. Bxb7 {[%clk 0:02:09]}  Qxb7 {[%clk 0:00:33]} 33. Red1 {[%clk 0:02:09]}  Qa7 {[%clk 0:00:26]} 34. Kh2 {[%clk 0:02:09]}  Qb7 {[%clk 0:00:19]} 35. Qe4 {[%clk 0:02:06]}  Qxe4 {[%clk 0:00:17]} 36. Rxe4 {[%clk 0:02:07]}  Rc8 {[%clk 0:00:15]} 37. Red4 {[%clk 0:02:07]}  h6 {[%clk 0:00:15]} 38. Rd8+ {[%clk 0:02:07]}  Rf8 {[%clk 0:00:14]} 39. Rxf8+ {[%clk 0:02:05]}  Rxf8 {[%clk 0:00:15]} 40. Nc6 {[%clk 0:02:02]}  Rc8 {[%clk 0:00:15]} 41. Nd4 {[%clk 0:02:03]}  Ne3 {[%clk 0:00:13]} 42. Rd3 {[%clk 0:02:03]}  Ng4+ {[%clk 0:00:12]} 43. Kg2 {[%clk 0:02:02]}  b4 {[%clk 0:00:11]} 44. cxb4 {[%clk 0:02:02]}  Rc4 {[%clk 0:00:11]} 45. a3 {[%clk 0:02:00]}  h5 {[%clk 0:00:11]} 46. Kf3 {[%clk 0:01:58]}  Nh6 {[%clk 0:00:09]} 47. Nxe6 {[%clk 0:01:58]}  Rc2 {[%clk 0:00:08]} 48. Ke4 {[%clk 0:01:58]}  Ng4 {[%clk 0:00:05]} 49. Nd4 {[%clk 0:01:57]}  Nf2+ {[%clk 0:00:04]} 50. Kf3 {[%clk 0:01:55]}  Nxd3 {[%clk 0:00:02]} 51. Nxc2 {[%clk 0:01:55]}  Nb2 {[%clk 0:00:02]} 52. Ke4 {[%clk 0:01:53]}  Nc4 {[%clk 0:00:03]} 53. Kd4 {[%clk 0:01:54]}  Nb6 {[%clk 0:00:04]} 54. Kc5 {[%clk 0:01:54]}  Nc8 {[%clk 0:00:04]} 55. b5 {[%clk 0:01:54]}  Kg8 {[%clk 0:00:04]} 56. b6 {[%clk 0:01:55]}  Kf8 {[%clk 0:00:03]} 57. b7 {[%clk 0:01:55]} 1-0


[Site "https://www.chess.com"]

[Event "Titled Tuesday Blitz May 16 Late 2023"]
[White "Malicka, Maria"]
[Black "Wagner, Dennis"]
[WhiteFideId "1197576"]
[BlackFideId "24650684"]
[WhiteElo "2227"]
[BlackElo "2478"]
[Result "0-1"]
[Round "04"]
[TimeControl "180+2"]
[Date "2023.05.16"]
[WhiteClock "0:00:21"]
[BlackClock "0:00:13"]

1. e4 {[%clk 0:03:00]}  e5 {[%clk 0:02:59]} 2. Nf3 {[%clk 0:03:00]}  Nc6 {[%clk 0:03:00]} 3. Nc3 {[%clk 0:03:00]}  Nf6 {[%clk 0:02:59]} 4. Bb5 {[%clk 0:03:00]}  Bd6 {[%clk 0:02:58]} 5. O-O {[%clk 0:02:55]}  O-O {[%clk 0:02:58]} 6. Re1 {[%clk 0:02:48]}  a6 {[%clk 0:02:57]} 7. Bf1 {[%clk 0:02:45]}  Re8 {[%clk 0:02:45]} 8. d3 {[%clk 0:02:40]}  h6 {[%clk 0:02:43]} 9. Ne2 {[%clk 0:02:39]}  Bf8 {[%clk 0:02:36]} 10. Ng3 {[%clk 0:02:39]}  d5 {[%clk 0:02:35]} 11. c3 {[%clk 0:02:34]}  Be6 {[%clk 0:02:22]} 12. h3 {[%clk 0:02:32]}  Qd7 {[%clk 0:02:21]} 13. Qe2 {[%clk 0:02:31]}  Rad8 {[%clk 0:02:20]} 14. Be3 {[%clk 0:02:24]}  g6 {[%clk 0:02:09]} 15. Qc2 {[%clk 0:02:04]}  Bg7 {[%clk 0:02:04]} 16. Rad1 {[%clk 0:02:03]}  Kh7 {[%clk 0:02:02]} 17. d4 {[%clk 0:01:49]}  Nxe4 {[%clk 0:01:50]} 18. Nxe4 {[%clk 0:01:49]}  dxe4 {[%clk 0:01:49]} 19. dxe5 {[%clk 0:01:49]}  Bd5 {[%clk 0:00:56]} 20. Bc4 {[%clk 0:01:26]}  exf3 {[%clk 0:00:52]} 21. Rxd5 {[%clk 0:01:03]}  Qe7 {[%clk 0:00:50]} 22. Rxd8 {[%clk 0:00:53]}  Rxd8 {[%clk 0:00:51]} 23. g3 {[%clk 0:00:52]}  Nxe5 {[%clk 0:00:46]} 24. Bf1 {[%clk 0:00:50]}  Qd7 {[%clk 0:00:40]} 25. Bd4 {[%clk 0:00:49]}  Nc6 {[%clk 0:00:37]} 26. Bxg7 {[%clk 0:00:50]}  Kxg7 {[%clk 0:00:37]} 27. Qe4 {[%clk 0:00:49]}  Qd5 {[%clk 0:00:35]} 28. Qf4 {[%clk 0:00:42]}  Qd2 {[%clk 0:00:33]} 29. Re3 {[%clk 0:00:41]}  Rd6 {[%clk 0:00:11]} 30. h4 {[%clk 0:00:29]}  Rf6 {[%clk 0:00:10]} 31. Qxc7 {[%clk 0:00:28]}  Qxb2 {[%clk 0:00:09]} 32. Re7 {[%clk 0:00:26]}  Nxe7 {[%clk 0:00:08]} 33. Qxe7 {[%clk 0:00:26]}  Qxa2 {[%clk 0:00:08]} 34. Qxb7 {[%clk 0:00:26]}  a5 {[%clk 0:00:07]} 35. c4 {[%clk 0:00:27]}  a4 {[%clk 0:00:08]} 36. c5 {[%clk 0:00:27]}  Qc2 {[%clk 0:00:07]} 37. Qa7 {[%clk 0:00:23]}  Re6 {[%clk 0:00:06]} 38. Qa8 {[%clk 0:00:18]}  Re1 {[%clk 0:00:03]} 39. c6 {[%clk 0:00:18]}  Qc1 {[%clk 0:00:03]} 40. Qa6 {[%clk 0:00:17]}  a3 {[%clk 0:00:03]} 41. c7 {[%clk 0:00:17]}  Qxc7 {[%clk 0:00:03]} 42. Qxa3 {[%clk 0:00:17]}  Qc1 {[%clk 0:00:04]} 43. Qa6 {[%clk 0:00:17]}  g5 {[%clk 0:00:03]} 44. hxg5 {[%clk 0:00:17]}  hxg5 {[%clk 0:00:04]} 45. Qb5 {[%clk 0:00:17]}  g4 {[%clk 0:00:04]} 46. Qa6 {[%clk 0:00:16]}  Rxf1+ {[%clk 0:00:04]} 47. Qxf1 {[%clk 0:00:15]}  Qxf1+ {[%clk 0:00:05]} 48. Kxf1 {[%clk 0:00:16]}  Kf6 {[%clk 0:00:06]} 49. Ke1 {[%clk 0:00:16]}  Ke5 {[%clk 0:00:07]} 50. Kd1 {[%clk 0:00:16]}  Kd4 {[%clk 0:00:07]} 51. Kd2 {[%clk 0:00:17]}  f6 {[%clk 0:00:07]} 52. Kd1 {[%clk 0:00:17]}  Kd3 {[%clk 0:00:07]} 53. Ke1 {[%clk 0:00:17]}  Kc2 {[%clk 0:00:07]} 54. Kf1 {[%clk 0:00:17]}  Kd1 {[%clk 0:00:08]} 55. Kg1 {[%clk 0:00:18]}  Ke1 {[%clk 0:00:09]} 56. Kh1 {[%clk 0:00:18]}  Kxf2 {[%clk 0:00:09]} 57. Kh2 {[%clk 0:00:19]}  f5 {[%clk 0:00:10]} 58. Kh1 {[%clk 0:00:20]}  f4 {[%clk 0:00:10]} 59. gxf4 {[%clk 0:00:19]}  g3 {[%clk 0:00:10]} 60. f5 {[%clk 0:00:20]}  g2+ {[%clk 0:00:11]} 61. Kh2 {[%clk 0:00:21]}  g1=Q+ {[%clk 0:00:12]} 62. Kh3 {[%clk 0:00:21]}  Qg3# {[%clk 0:00:13]} 0-1


[Site "https://www.chess.com"]

[Event "Titled Tuesday Blitz May 16 Late 2023"]
[White "Simonian, Hrair"]
[Black "Mazurkiewicz, Michal"]
[WhiteFideId "13302337"]
[BlackFideId "1124943"]
[WhiteElo "2447"]
[BlackElo "2054"]
[Result "1/2-1/2"]
[Round "04"]
[TimeControl "180+2"]
[Date "2023.05.16"]
[WhiteClock "0:00:03"]
[BlackClock "0:00:05"]

1. e4 {[%clk 0:03:00]}  d6 {[%clk 0:02:59]} 2. d4 {[%clk 0:03:00]}  Nf6 {[%clk 0:03:00]} 3. Nc3 {[%clk 0:03:01]}  c6 {[%clk 0:03:00]} 4. Nf3 {[%clk 0:03:01]}  Bg4 {[%clk 0:03:00]} 5. Be3 {[%clk 0:02:57]}  e6 {[%clk 0:03:00]} 6. Be2 {[%clk 0:02:52]}  d5 {[%clk 0:03:00]} 7. h3 {[%clk 0:02:49]}  Bh5 {[%clk 0:03:00]} 8. e5 {[%clk 0:02:38]}  Nfd7 {[%clk 0:02:59]} 9. O-O {[%clk 0:02:23]}  c5 {[%clk 0:02:59]} 10. Nb5 {[%clk 0:02:17]}  Nc6 {[%clk 0:02:54]} 11. c4 {[%clk 0:02:14]}  a6 {[%clk 0:02:09]} 12. cxd5 {[%clk 0:02:07]}  axb5 {[%clk 0:02:08]} 13. dxc6 {[%clk 0:02:07]}  bxc6 {[%clk 0:02:09]} 14. d5 {[%clk 0:02:05]}  cxd5 {[%clk 0:01:58]} 15. Bxb5 {[%clk 0:02:02]}  Be7 {[%clk 0:01:58]} 16. Bf4 {[%clk 0:01:32]}  O-O {[%clk 0:01:57]} 17. a4 {[%clk 0:01:31]}  Qc7 {[%clk 0:01:56]} 18. Re1 {[%clk 0:01:29]}  c4 {[%clk 0:01:44]} 19. b3 {[%clk 0:01:26]}  c3 {[%clk 0:01:25]} 20. Rc1 {[%clk 0:01:22]}  Rfc8 {[%clk 0:01:22]} 21. Qe2 {[%clk 0:01:16]}  Bb4 {[%clk 0:01:07]} 22. Qe3 {[%clk 0:01:04]}  Bxf3 {[%clk 0:00:59]} 23. Qxf3 {[%clk 0:01:05]}  Nc5 {[%clk 0:00:59]} 24. Qg4 {[%clk 0:00:58]}  Nxb3 {[%clk 0:00:53]} 25. Bh6 {[%clk 0:00:57]}  Bf8 {[%clk 0:00:47]} 26. Rc2 {[%clk 0:00:49]}  Qc5 {[%clk 0:00:44]} 27. Re3 {[%clk 0:00:42]}  Nd4 {[%clk 0:00:38]} 28. Rg3 {[%clk 0:00:39]}  Nf5 {[%clk 0:00:37]} 29. Rgxc3 {[%clk 0:00:28]}  Nxh6 {[%clk 0:00:35]} 30. Rxc5 {[%clk 0:00:26]}  Bxc5 {[%clk 0:00:17]} 31. Qe2 {[%clk 0:00:23]}  Nf5 {[%clk 0:00:16]} 32. Qd3 {[%clk 0:00:13]}  Bb6 {[%clk 0:00:14]} 33. Rxc8+ {[%clk 0:00:13]}  Rxc8 {[%clk 0:00:15]} 34. g3 {[%clk 0:00:12]}  Bd4 {[%clk 0:00:14]} 35. a5 {[%clk 0:00:11]}  Bxe5 {[%clk 0:00:12]} 36. a6 {[%clk 0:00:11]}  Bb8 {[%clk 0:00:06]} 37. Bd7 {[%clk 0:00:10]}  Rc7 {[%clk 0:00:05]} 38. Qb5 {[%clk 0:00:09]}  Ba7 {[%clk 0:00:05]} 39. Bxe6 {[%clk 0:00:09]}  h5 {[%clk 0:00:04]} 40. Qe8+ {[%clk 0:00:09]}  Kh7 {[%clk 0:00:04]} 41. Bxf7 {[%clk 0:00:10]}  Rc1+ {[%clk 0:00:03]} 42. Kg2 {[%clk 0:00:09]}  Rc2 {[%clk 0:00:04]} 43. Bg6+ {[%clk 0:00:08]}  Kh6 {[%clk 0:00:05]} 44. Bxf5 {[%clk 0:00:08]}  Rxf2+ {[%clk 0:00:04]} 45. Kh1 {[%clk 0:00:08]}  Rxf5 {[%clk 0:00:05]} 46. Qe6+ {[%clk 0:00:07]}  Rf6 {[%clk 0:00:04]} 47. Qd7 {[%clk 0:00:04]}  Rf1+ {[%clk 0:00:03]} 48. Kg2 {[%clk 0:00:04]}  Rf2+ {[%clk 0:00:03]} 49. Kh1 {[%clk 0:00:04]}  Rf1+ {[%clk 0:00:04]} 50. Kh2 {[%clk 0:00:04]}  Rf2+ {[%clk 0:00:04]} 51. Kh1 {[%clk 0:00:03]}  Rf1+ {[%clk 0:00:05]} 1/2-1/2


[Site "https://www.chess.com"]

[Event "Titled Tuesday Blitz May 16 Late 2023"]
[White "FlemingA"]
[Black "Melikyan, Gnel"]
[BlackFideId "54109990"]
[WhiteElo "2381"]
[BlackElo "2138"]
[Result "0-1"]
[Round "04"]
[TimeControl "180+2"]
[Date "2023.05.16"]
[WhiteClock "0:00:03"]
[BlackClock "0:01:04"]

1. e4 {[%clk 0:02:56]}  a6 {[%clk 0:02:56]} 2. d4 {[%clk 0:02:56]}  e6 {[%clk 0:02:56]} 3. Nc3 {[%clk 0:02:55]}  c5 {[%clk 0:02:52]} 4. dxc5 {[%clk 0:02:33]}  Bxc5 {[%clk 0:02:52]} 5. Bd3 {[%clk 0:02:31]}  Nf6 {[%clk 0:02:51]} 6. Nf3 {[%clk 0:02:30]}  b5 {[%clk 0:02:44]} 7. e5 {[%clk 0:02:25]}  Ng4 {[%clk 0:02:40]} 8. O-O {[%clk 0:02:18]}  Nc6 {[%clk 0:02:39]} 9. Ne4 {[%clk 0:02:03]}  Be7 {[%clk 0:02:33]} 10. Bf4 {[%clk 0:02:02]}  h5 {[%clk 0:02:27]} 11. h3 {[%clk 0:01:57]}  Nh6 {[%clk 0:02:27]} 12. a4 {[%clk 0:01:57]}  bxa4 {[%clk 0:02:23]} 13. Rxa4 {[%clk 0:01:54]}  Nf5 {[%clk 0:02:24]} 14. Qe2 {[%clk 0:01:49]}  Qb6 {[%clk 0:02:17]} 15. c3 {[%clk 0:01:42]}  a5 {[%clk 0:02:12]} 16. Bg5 {[%clk 0:01:35]}  Bf8 {[%clk 0:02:04]} 17. Rfa1 {[%clk 0:01:14]}  Bb7 {[%clk 0:01:52]} 18. b4 {[%clk 0:01:13]}  Ra7 {[%clk 0:01:45]} 19. b5 {[%clk 0:01:05]}  Nd8 {[%clk 0:01:40]} 20. Nfd2 {[%clk 0:00:53]}  Be7 {[%clk 0:01:28]} 21. Bxe7 {[%clk 0:00:45]}  Kxe7 {[%clk 0:01:26]} 22. Nc4 {[%clk 0:00:42]}  Qxb5 {[%clk 0:01:23]} 23. Ncd6 {[%clk 0:00:39]}  Qxe5 {[%clk 0:01:21]} 24. f4 {[%clk 0:00:24]}  Qxf4 {[%clk 0:01:13]} 25. Rf1 {[%clk 0:00:12]}  Qe3+ {[%clk 0:01:12]} 26. Qxe3 {[%clk 0:00:06]}  Nxe3 {[%clk 0:01:13]} 27. Rfa1 {[%clk 0:00:05]}  Nd5 {[%clk 0:01:06]} 28. Nxb7 {[%clk 0:00:05]}  Nxb7 {[%clk 0:01:05]} 29. Bb5 {[%clk 0:00:03]}  Rc8 {[%clk 0:01:04]} 0-1


[Site "https://www.chess.com"]

[Event "Titled Tuesday Blitz May 16 Late 2023"]
[White "Abduzhaparov"]
[Black "Hnydiuk, Aleksander"]
[BlackFideId "1109057"]
[WhiteElo "2378"]
[BlackElo "2374"]
[Result "1-0"]
[Round "04"]
[TimeControl "180+2"]
[Date "2023.05.16"]
[WhiteClock "0:00:13"]
[BlackClock "0:00:58"]

1. Nf3 {[%clk 0:02:56]}  d5 {[%clk 0:02:59]} 2. c4 {[%clk 0:02:57]}  d4 {[%clk 0:02:57]} 3. e3 {[%clk 0:02:57]}  c5 {[%clk 0:02:51]} 4. b4 {[%clk 0:02:57]}  g6 {[%clk 0:02:48]} 5. bxc5 {[%clk 0:02:57]}  Nc6 {[%clk 0:02:47]} 6. exd4 {[%clk 0:02:53]}  Bg7 {[%clk 0:02:46]} 7. d5 {[%clk 0:02:44]}  Bxa1 {[%clk 0:02:43]} 8. dxc6 {[%clk 0:02:44]}  Nf6 {[%clk 0:02:37]} 9. Qa4 {[%clk 0:02:38]}  O-O {[%clk 0:02:35]} 10. Be2 {[%clk 0:02:34]}  Ne4 {[%clk 0:02:23]} 11. cxb7 {[%clk 0:02:13]}  Bxb7 {[%clk 0:02:21]} 12. c6 {[%clk 0:02:13]}  Bc8 {[%clk 0:02:11]} 13. O-O {[%clk 0:02:11]}  Rb8 {[%clk 0:02:08]} 14. Ba3 {[%clk 0:01:51]}  Bf5 {[%clk 0:02:00]} 15. d4 {[%clk 0:01:36]}  Bxd4 {[%clk 0:01:54]} 16. Nxd4 {[%clk 0:01:24]}  Qxd4 {[%clk 0:01:53]} 17. Qd1 {[%clk 0:00:59]}  Qa1 {[%clk 0:01:50]} 18. c7 {[%clk 0:00:44]}  Rb7 {[%clk 0:01:40]} 19. Bxe7 {[%clk 0:00:43]}  Rxc7 {[%clk 0:01:17]} 20. Bxf8 {[%clk 0:00:39]}  Rd7 {[%clk 0:01:16]} 21. Qb3 {[%clk 0:00:17]}  Kxf8 {[%clk 0:01:15]} 22. Nd2 {[%clk 0:00:13]}  Nxd2 {[%clk 0:01:10]} 23. Qb4+ {[%clk 0:00:12]}  Kg7 {[%clk 0:00:58]} 24. Rxa1 {[%clk 0:00:13]} 1-0


[Site "https://www.chess.com"]

[Event "Titled Tuesday Blitz May 16 Late 2023"]
[White "Seemann, Jakub"]
[Black "Bogaudinov, Rushan"]
[WhiteFideId "21874697"]
[BlackFideId "4129288"]
[WhiteElo "2364"]
[BlackElo "1941"]
[Result "1-0"]
[Round "04"]
[TimeControl "180+2"]
[Date "2023.05.16"]
[WhiteClock "0:01:36"]
[BlackClock "0:00:00"]

1. d3 {[%clk 0:03:00]}  d5 {[%clk 0:02:58]} 2. Nf3 {[%clk 0:03:00]}  g6 {[%clk 0:02:58]} 3. g3 {[%clk 0:02:59]}  Bg7 {[%clk 0:02:58]} 4. Bg2 {[%clk 0:03:00]}  b6 {[%clk 0:02:58]} 5. O-O {[%clk 0:03:00]}  Bb7 {[%clk 0:02:58]} 6. Nbd2 {[%clk 0:03:00]}  Nf6 {[%clk 0:02:58]} 7. Qe1 {[%clk 0:02:52]}  O-O {[%clk 0:02:57]} 8. Ne5 {[%clk 0:02:51]}  Nbd7 {[%clk 0:02:54]} 9. Nxd7 {[%clk 0:02:50]}  Qxd7 {[%clk 0:02:49]} 10. e4 {[%clk 0:02:50]}  dxe4 {[%clk 0:02:47]} 11. Nxe4 {[%clk 0:02:50]}  Nxe4 {[%clk 0:02:47]} 12. Bxe4 {[%clk 0:02:49]}  Bxe4 {[%clk 0:02:47]} 13. Qxe4 {[%clk 0:02:50]}  c5 {[%clk 0:02:39]} 14. a4 {[%clk 0:02:45]}  a6 {[%clk 0:02:37]} 15. Bg5 {[%clk 0:02:41]}  e6 {[%clk 0:02:30]} 16. c3 {[%clk 0:02:39]}  h6 {[%clk 0:02:28]} 17. Bf4 {[%clk 0:02:36]}  Rfe8 {[%clk 0:02:07]} 18. Be5 {[%clk 0:02:26]}  Qd5 {[%clk 0:02:00]} 19. Qxd5 {[%clk 0:02:24]}  exd5 {[%clk 0:02:00]} 20. Bxg7 {[%clk 0:02:25]}  Kxg7 {[%clk 0:02:00]} 21. Rfe1 {[%clk 0:02:26]}  h5 {[%clk 0:01:54]} 22. h4 {[%clk 0:02:24]}  Kf6 {[%clk 0:01:46]} 23. Kg2 {[%clk 0:02:24]}  Re6 {[%clk 0:01:26]} 24. Kf3 {[%clk 0:02:22]}  Rae8 {[%clk 0:01:25]} 25. Rxe6+ {[%clk 0:02:23]}  Rxe6 {[%clk 0:01:19]} 26. Rd1 {[%clk 0:02:11]}  Ke7 {[%clk 0:01:14]} 27. b3 {[%clk 0:02:09]}  Kd6 {[%clk 0:01:13]} 28. d4 {[%clk 0:02:08]}  f6 {[%clk 0:01:09]} 29. c4 {[%clk 0:01:56]}  dxc4 {[%clk 0:01:04]} 30. d5 {[%clk 0:01:56]}  Re5 {[%clk 0:00:59]} 31. bxc4 {[%clk 0:01:56]}  f5 {[%clk 0:00:51]} 32. Rb1 {[%clk 0:01:52]}  Kc7 {[%clk 0:00:49]} 33. Kf4 {[%clk 0:01:49]}  Re4+ {[%clk 0:00:48]} 34. Kg5 {[%clk 0:01:49]}  Rxc4 {[%clk 0:00:42]} 35. Kxg6 {[%clk 0:01:49]}  Rxa4 {[%clk 0:00:31]} 36. Kxh5 {[%clk 0:01:48]}  c4 {[%clk 0:00:28]} 37. Kg6 {[%clk 0:01:47]}  c3 {[%clk 0:00:27]} 38. h5 {[%clk 0:01:47]}  c2 {[%clk 0:00:23]} 39. Rc1 {[%clk 0:01:43]}  Rc4 {[%clk 0:00:21]} 40. h6 {[%clk 0:01:38]}  Kd6 {[%clk 0:00:21]} 41. h7 {[%clk 0:01:38]}  Rc8 {[%clk 0:00:21]} 42. Rxc2 {[%clk 0:01:37]}  Rxc2 {[%clk 0:00:17]} 43. h8=Q {[%clk 0:01:36]}  Rxf2 {[%clk 0:00:16]} 44. Qd8+ {[%clk 0:01:35]}  Kc5 {[%clk 0:00:15]} 45. d6 {[%clk 0:01:34]}  Rf3 {[%clk 0:00:13]} 46. Qc7+ {[%clk 0:01:34]}  Kb5 {[%clk 0:00:12]} 47. d7 {[%clk 0:01:35]}  Rd3 {[%clk 0:00:00]} 48. d8=Q {[%clk 0:01:36]} 1-0


[Site "https://www.chess.com"]